fUSD/lending_fUSD_20250606
["ID","MTS","AMOUNT","RATE_DAILY","PERIOD"]
[364728674,1749220292548,-480.0,0.0003115,7]
[364728675,1749220292735,-480.0,0.0003115,7]
[364728676,1749220292746,-1206.52,0.0003115,7]
[364728677,1749220292755,-480.0,0.0003115,7]
[364728678,1749220292765,-608.45,0.0003115,7]
[364728679,1749220292774,-480.0,0.0003115,7]
[364728680,1749220292784,-920.1,0.0003115,7]
[364728681,1749220292793,-480.0,0.0003115,7]
[364728682,1749220292803,-480.0,0.0003115,7]
[364728683,1749220292812,-480.0,0.0003115,7]
[364728684,1749220292821,-480.0,0.0003115,7]
[364728685,1749220292831,-1792.16,0.0003115,7]
[364728686,1749220292840,-862.41,0.0003115,7]
[364728687,1749220292850,-490.39,0.0003115,7]
[364728688,1749220292859,-480.0,0.0003115,7]
[364728689,1749220292868,-480.0,0.0003115,7]
[364728690,1749220292878,-1262.12,0.0003115,7]
[364728691,1749220292887,-480.0,0.0003115,7]
[364728692,1749220292897,-1912.2,0.0003115,7]
[364728693,1749220292907,-480.0,0.0003115,7]
[364728694,1749220292915,-480.0,0.0003115,7]
[364728695,1749220292923,-257.26036802,0.0003115,7]
[364728696,1749220292932,-480.0,0.0003115,7]
[364728697,1749220292944,-789.07,0.0003115,7]
[364728698,1749220292953,-480.0,0.0003115,7]
[364728699,1749220292963,-504.93524171,0.0003115,7]
[364728700,1749220292973,-486.86,0.0003115,7]
[364728701,1749220292982,-480.0,0.0003115,7]
[364728702,1749220292991,-1009.26,0.0003115,7]
[364728703,1749220293001,-480.0,0.0003115,7]
[364728704,1749220293017,-1163.93,0.0003115,7]
[364728705,1749220293027,-1438.84,0.0003115,7]
[364728706,1749220293036,-480.0,0.0003115,7]
[364728707,1749220293046,-480.0,0.0003115,7]
[364728708,1749220293056,-480.0,0.0003115,7]
[364728709,1749220293065,-1570.73,0.0003115,7]
[364728710,1749220293074,-480.0,0.0003115,7]
[364728711,1749220293084,-480.0,0.0003115,7]
[364728712,1749220293093,-480.0,0.0003115,7]
[364728713,1749220293103,-528.17,0.0003115,7]
[364728714,1749220293112,-761.22,0.0003115,7]
[364728715,1749220293122,-480.0,0.0003115,7]
[364728716,1749220293132,-480.0,0.0003115,7]
[364728717,1749220293141,-1220.04,0.0003115,7]
[364728718,1749220293151,-597.43,0.0003115,7]
[364728719,1749220293161,-480.0,0.0003115,7]
[364728720,1749220293171,-1362.42,0.0003115,7]
[364728721,1749220293181,-480.0,0.0003115,7]
[364728722,1749220293191,-480.0,0.0003115,7]
[364728723,1749220293201,-1189.05,0.0003115,7]
[364728724,1749220293211,-480.0,0.0003115,7]
[364728725,1749220293220,-625.79225979,0.0003115,7]
[364728726,1749220293230,-318.88274585,0.0003115,7]
[364728727,1749220293239,-985.5,0.0003115,7]
[364728728,1749220293248,-820.31,0.0003115,7]
[364728729,1749220293258,-572.01,0.0003115,7]
[364728730,1749220293267,-1807.04,0.0003115,7]
[364728731,1749220293277,-1262.79,0.0003115,7]
[364728732,1749220293287,-480.0,0.0003115,7]
[364728733,1749220293297,-2516.73,0.0003115,7]
[364728734,1749220293307,-778.34,0.0003115,7]
[364728735,1749220293317,-480.0,0.0003115,7]
[364728736,1749220293327,-839.08,0.0003115,7]
[364728737,1749220293336,-11285.31,0.0003115,7]
[364728738,1749220293346,-1101.15,0.0003115,7]
[364728739,1749220293356,-480.0,0.0003115,7]
[364728740,1749220293365,-3214.08,0.0003115,7]
[364728741,1749220293375,-480.0,0.0003115,7]
[364728742,1749220293391,-480.0,0.0003115,7]
[364728743,1749220293401,-2964.96,0.0003115,7]
[364728744,1749220293411,-873.96,0.0003115,7]
[364728745,1749220293420,-4607.18,0.0003115,7]
[364728746,1749220293431,-480.0,0.0003115,7]
[364728747,1749220293440,-20710.06,0.0003115,7]
[364728748,1749220293451,-480.0,0.0003115,7]
[364728749,1749220293462,-480.0,0.0003115,7]
[364728750,1749220293471,-1067.02,0.0003115,7]
[364728751,1749220293481,-480.0,0.0003115,7]
[364728752,1749220293491,-612.42,0.0003115,7]
[364728753,1749220293500,-3585.66,0.0003115,7]
[364728754,1749220293509,-480.0,0.0003115,7]
[364728755,1749220293519,-1186.93,0.0003115,7]
[364728756,1749220293529,-330.15579232,0.0003115,7]
[364728757,1749220293538,-1255.39,0.0003115,7]
[364728758,1749220293548,-2364.45,0.0003115,7]
[364728759,1749220293557,-1399.55,0.0003115,7]
[364728760,1749220293567,-491.87,0.0003115,7]
[364728761,1749220293577,-825.25,0.0003115,7]
[364728762,1749220293587,-1108.3,0.0003115,7]
[364728763,1749220293596,-726.54,0.0003115,7]
[364728764,1749220293606,-480.0,0.0003115,7]
[364728765,1749220293615,-2028.66,0.0003115,7]
[364728766,1749220293626,-1692.8,0.0003115,7]
[364728767,1749220293636,-781.47,0.0003115,7]
[364728768,1749220293645,-1466.18,0.0003115,7]
[364728769,1749220293655,-73191.22,0.0003115,7]
[364728770,1749220293664,-1031.1,0.0003115,7]
[364728771,1749220293673,-2308.95,0.0003115,7]
[364728772,1749220293682,-1187.36,0.0003115,7]
[364728773,1749220293693,-1402.86,0.0003115,7]
[364728774,1749220293703,-1807.35,0.0003115,7]
[364728775,1749220293712,-1648.94,0.0003115,7]
[364728776,1749220293722,-1912.7,0.0003115,7]
[364728777,1749220293731,-4297.8,0.0003115,7]
[364728778,1749220293740,-1127.05,0.0003115,7]
[364728779,1749220293749,-480.0,0.0003115,7]
[364728780,1749220293758,-1433.3,0.0003115,7]
[364728781,1749220293768,-793.28,0.0003115,7]
[364728782,1749220293778,-480.0,0.0003115,7]
[364728783,1749220293787,-845.41,0.0003115,7]
[364728784,1749220293797,-1143.75,0.0003115,7]
[364728785,1749220293806,-4339.46,0.0003115,7]
[364728786,1749220293814,-550.99,0.0003115,7]
[364728787,1749220293824,-480.0,0.0003115,7]
[364728788,1749220293834,-480.0,0.0003115,7]
[364728789,1749220293843,-558.97,0.0003115,7]
[364728790,1749220293853,-705.32,0.0003115,7]
[364728791,1749220293863,-638.49,0.0003115,7]
[364728792,1749220293872,-646.01,0.0003115,7]
[364728793,1749220293881,-486.9651403,0.0003115,7]
[364728794,1749220293890,-5821.7,0.0003115,7]
[364728795,1749220293899,-480.0,0.0003115,7]
[364728796,1749220293908,-1415.28,0.0003115,7]
[364728797,1749220293918,-480.0,0.0003115,7]
[364728798,1749220293928,-317.34252888,0.0003115,7]
[364728799,1749220293937,-2219.2,0.0003115,7]
[364728800,1749220293952,-2997.28,0.0003115,7]
[364728801,1749220293961,-4881.17,0.0003115,7]
[364728802,1749220293971,-1494.8,0.0003115,7]
[364728803,1749220293980,-480.0,0.0003115,7]
[364728804,1749220293990,-480.0,0.0003115,7]
[364728805,1749220293999,-761.61,0.0003115,7]
[364728806,1749220294008,-2109.18,0.0003115,7]
[364728807,1749220294018,-1044.45,0.0003115,7]
[364728808,1749220294028,-480.0,0.0003115,7]
[364728809,1749220294038,-617.24,0.0003115,7]
[364728810,1749220294048,-6318.65,0.0003115,7]
[364728811,1749220294058,-1804.22,0.0003115,7]
[364728812,1749220294068,-776.29,0.0003115,7]
[364728813,1749220294077,-5806.79,0.0003115,7]
[364728814,1749220294087,-480.0,0.0003115,7]
[364728815,1749220294096,-902.05,0.0003115,7]
[364728816,1749220294106,-480.0,0.0003115,7]
[364728817,1749220294116,-677.86,0.0003115,7]
[364728818,1749220294126,-17052.87,0.0003115,7]
[364728819,1749220294136,-1448.58,0.0003115,7]
[364728820,1749220294146,-480.0,0.0003115,7]
[364728821,1749220294156,-480.0,0.0003115,7]
[364728822,1749220294166,-1087.78,0.0003115,7]
[364728823,1749220294176,-596.02,0.0003115,7]
[364728824,1749220294186,-1086.7,0.0003115,7]
[364728825,1749220294196,-1926.02,0.0003115,7]
[364728826,1749220294206,-1310.18,0.0003115,7]
[364728827,1749220294216,-480.01,0.0003115,7]
[364728828,1749220294226,-971.77,0.0003115,7]
[364728829,1749220294236,-2065.59,0.0003115,7]
[364728830,1749220294246,-13307.39,0.0003115,7]
[364728831,1749220294256,-2324.9,0.0003115,7]
[364728832,1749220294266,-480.0,0.0003115,7]
[364728833,1749220294276,-824.21,0.0003115,7]
[364728834,1749220294287,-2178.92,0.0003115,7]
[364728835,1749220294297,-3945.0,0.0003115,7]
[364728836,1749220294308,-480.0,0.0003115,7]
[364728837,1749220294318,-4149.78,0.0003115,7]
[364728838,1749220294328,-3813.84,0.0003115,7]
[364728839,1749220294338,-1365.76,0.0003115,7]
[364728840,1749220294347,-984.68,0.0003115,7]
[364728841,1749220294358,-904.26,0.0003115,7]
[364728842,1749220294367,-480.0,0.0003115,7]
[364728843,1749220294377,-480.0,0.0003115,7]
[364728844,1749220294391,-4903.83,0.0003115,7]
[364728845,1749220294401,-1112.93,0.0003115,7]
[364728846,1749220294411,-813.56,0.0003115,7]
[364728847,1749220294420,-1976.97,0.0003115,7]
[364728848,1749220294431,-3642.55,0.0003115,7]
[364728849,1749220294440,-2033.72,0.0003115,7]
[364728850,1749220294450,-1600.26,0.0003115,7]
[364728851,1749220294461,-878.97,0.0003115,7]
[364728852,1749220294472,-480.0,0.0003115,7]
[364728853,1749220294482,-480.0,0.0003115,7]
[364728854,1749220294491,-480.0,0.0003115,7]
[364728855,1749220294502,-948.36,0.0003115,7]
[364728856,1749220294513,-10382.45,0.0003115,7]
[364728857,1749220294522,-520.79,0.0003115,7]
[364728858,1749220294533,-480.0,0.0003115,7]
[364728859,1749220294542,-1399.06,0.0003115,2]
[364728860,1749220294551,-3570.9,0.0003115,7]
[364728861,1749220294562,-875.0,0.0003115,7]
[364728862,1749220294572,-1610.11,0.0003115,7]
[364728863,1749220294582,-506.97,0.0003115,7]
[364728864,1749220294592,-582.82,0.0003115,7]
[364728865,1749220294602,-1069.2,0.0003115,7]
[364728866,1749220294611,-5037.96,0.0003115,7]
[364728867,1749220294620,-1221.01,0.0003115,7]
[364728868,1749220294630,-2746.68,0.0003115,7]
[364728869,1749220294639,-1159.49,0.0003115,7]
[364728870,1749220294648,-1726.11,0.0003115,7]
[364728871,1749220294658,-480.0,0.0003115,7]
[364728872,1749220294667,-4017.92,0.0003115,7]
[364728873,1749220294676,-4678.49,0.0003115,7]
[364728874,1749220294686,-1324.34,0.0003115,7]
[364728875,1749220294697,-480.0,0.0003115,7]
[364728876,1749220294707,-576.09,0.0003115,7]
[364728877,1749220294716,-619.71,0.0003115,7]
[364728878,1749220294726,-1000.0,0.0003115,7]
[364728879,1749220294735,-1223.35,0.0003115,7]
[364728880,1749220294744,-480.0,0.0003115,7]
[364728881,1749220294754,-480.0,0.0003115,7]
[364728882,1749220294763,-480.0,0.0003115,7]
[364728883,1749220294772,-561.75823326,0.0003115,7]
[364728884,1749220294781,-2298.56,0.0003115,7]
[364728885,1749220294791,-1792.53,0.0003115,7]
[364728886,1749220294800,-783.46,0.0003115,7]
[364728887,1749220294810,-488.06,0.0003115,7]
[364728888,1749220294819,-480.0,0.0003115,7]
[364728889,1749220294829,-480.0,0.0003115,7]
[364728890,1749220294839,-4227.26,0.0003115,7]
[364728891,1749220294848,-4126.83,0.0003115,7]
[364728892,1749220294858,-985.6,0.0003115,7]
[364728893,1749220294867,-558.35,0.0003115,7]
[364728894,1749220294876,-480.0,0.0003115,7]
[364728895,1749220294886,-1349.15,0.0003115,7]
[364728896,1749220294895,-480.0,0.0003115,7]
[364728897,1749220294905,-946.38,0.0003115,7]
[364728898,1749220294914,-480.0,0.0003115,7]
[364728899,1749220294924,-1972.33,0.0003115,7]
[364728900,1749220294935,-869.99,0.0003115,7]
[364728901,1749220294946,-1957.15,0.0003115,7]
[364728902,1749220294955,-667.66,0.0003115,7]
[364728903,1749220294964,-788.43,0.0003115,7]
[364728904,1749220294973,-480.0,0.0003115,7]
[364728905,1749220294983,-752.97,0.0003115,7]
[364728906,1749220294993,-2371.57,0.0003115,7]
[364728907,1749220295002,-480.0,0.0003115,7]
[364728908,1749220295012,-264.16652672,0.0003115,7]
[364728909,1749220295021,-601.08,0.0003115,7]
[364728910,1749220295030,-480.0,0.0003115,7]
[364728911,1749220295039,-2258.41,0.0003115,7]
[364728912,1749220295049,-480.0,0.0003115,7]
[364728913,1749220295058,-480.0,0.0003115,7]
[364728914,1749220295068,-617.19,0.0003115,7]
[364728915,1749220295078,-957.11,0.0003115,7]
[364728916,1749220295087,-661.16,0.0003115,7]
[364728917,1749220295096,-15596.64,0.0003115,7]
[364728918,1749220295106,-1003.28,0.0003115,7]
[364728919,1749220295115,-1277.26,0.0003115,7]
[364728920,1749220295274,-846.81,0.0003115,7]
[364728921,1749220295284,-1738.04,0.0003115,7]
[364728922,1749220295294,-480.0,0.0003115,7]
[364728923,1749220295304,-2129.46,0.0003115,7]
[364728924,1749220295314,-1214.21,0.0003115,7]
[364728925,1749220295324,-820.16,0.0003115,7]
[364728926,1749220295334,-480.0,0.0003115,7]
[364728927,1749220295344,-2196.5,0.0003115,7]
[364728928,1749220295353,-923.4,0.0003115,7]
[364728929,1749220295363,-2461.07,0.0003115,7]
[364728930,1749220295372,-2342.28,0.0003115,7]
[364728931,1749220295386,-2121.81,0.0003115,7]
[364728932,1749220295396,-1254.9,0.0003115,7]
[364728933,1749220295406,-480.0,0.0003115,7]
[364728934,1749220295416,-1793.96,0.0003115,7]
[364728935,1749220295427,-896.54,0.0003115,7]
[364728936,1749220295436,-2687.86,0.0003115,7]
[364728937,1749220295447,-480.0,0.0003115,7]
[364728938,1749220295459,-979.7,0.0003115,7]
[364728939,1749220295468,-480.0,0.0003115,7]
[364728940,1749220295478,-761.13,0.0003115,2]
[364728941,1749220295488,-820.24,0.0003115,7]
[364728942,1749220295498,-873.83,0.0003115,7]
[364728943,1749220295508,-1677.25,0.0003115,7]
[364728944,1749220295517,-1293.09,0.0003115,7]
[364728945,1749220295527,-529.01,0.0003115,7]
[364728946,1749220295537,-1068.09,0.0003115,7]
[364728947,1749220295548,-787.96,0.0003115,7]
[364728948,1749220295558,-480.0,0.0003115,7]
[364728949,1749220295568,-1242.86,0.0003115,7]
[364728950,1749220295577,-11034.26,0.0003115,7]
[364728951,1749220295587,-480.0,0.0003115,7]
[364728952,1749220295597,-564.91,0.0003115,7]
[364728953,1749220295607,-480.0,0.0003115,7]
[364728954,1749220295616,-937.81,0.0003115,2]
[364728955,1749220295626,-480.0,0.0003115,7]
[364728956,1749220295635,-480.0,0.0003115,7]
[364728957,1749220295645,-671.61,0.0003115,7]
[364728958,1749220295655,-699.69,0.0003115,7]
[364728959,1749220295665,-2147.96,0.0003115,7]
[364728960,1749220295675,-569.84,0.0003115,7]
[364728961,1749220295684,-806.66,0.0003115,7]
[364728962,1749220295696,-1417.78,0.0003115,7]
[364728963,1749220295706,-720.25,0.0003115,7]
[364728964,1749220295715,-1409.97,0.0003115,7]
[364728965,1749220295725,-200.0,0.0003115,7]
[364728966,1749220295734,-1915.93,0.0003115,7]
[364728967,1749220295744,-1184.01,0.0003115,7]
[364728968,1749220295753,-1233.97,0.0003115,7]
[364728969,1749220295763,-480.0,0.0003115,7]
[364728970,1749220295773,-480.0,0.0003115,7]
[364728971,1749220295783,-480.0,0.0003115,7]
[364728972,1749220295792,-480.0,0.0003115,7]
[364728973,1749220295802,-480.0,0.0003115,7]
[364728974,1749220295813,-150.0,0.00031151,7]
[364728975,1749220295822,-302.16,0.00031153,2]
[364728976,1749220295831,-150.0,0.00031155,7]
[364728977,1749220295841,-150.0,0.00031155,7]
[364728978,1749220295850,-239.4279877,0.0003116,7]
[364728979,1749220295860,-186.88884126,0.0003116,7]
[364728980,1749220295869,-150.0,0.00031163,7]
[364728981,1749220295878,-150.0,0.00031166,7]
[364728982,1749220295888,-239.4279877,0.00031173,7]
[364728983,1749220295897,-186.88884126,0.00031173,7]
[364728984,1749220295907,-150.0,0.00031176,7]
[364728985,1749220295916,-150.0,0.0003118,7]
[364728986,1749220295926,-150.0,0.00031181,7]
[364728987,1749220295935,-239.4279877,0.00031187,7]
[364728988,1749220295945,-186.88884126,0.00031187,7]
[364728989,1749220295955,-150.0,0.00031188,7]
[364728990,1749220295964,-12000.0,0.0003119,8]
[364728991,1749220295974,-150.0,0.00031194,7]
[364728992,1749220295983,-150.0,0.00031196,7]
[364728993,1749220295992,-2000.0,0.00031198,10]
[364728994,1749220296002,-239.4279877,0.000312,7]
[364728995,1749220296012,-186.88884126,0.000312,7]
[364728996,1749220296021,-150.0,0.00031208,7]
[364728997,1749220296031,-150.0,0.0003121,7]
[364728998,1749220296040,-150.0,0.0003121,7]
[364728999,1749220296050,-239.4279877,0.00031213,7]
[364729000,1749220296059,-186.88884126,0.00031213,7]
[364729001,1749220296069,-162.52378398,0.00031215,2]
[364729002,1749220296078,-434.67087066,0.00031215,2]
[364729003,1749220296087,-150.0,0.00031217,7]
[364729004,1749220296096,-150.0,0.00031226,7]
[364729005,1749220296106,-239.4279877,0.00031227,7]
[364729006,1749220296115,-186.88884126,0.00031227,7]
[364729007,1749220296124,-301.27966768,0.00031232,4]
[364729008,1749220296133,-150.0,0.00031232,7]
[364729009,1749220296143,-150.0,0.00031236,7]
[364729010,1749220296152,-150.0,0.00031238,7]
[364729011,1749220296161,-239.4279877,0.0003124,7]
[364729012,1749220296171,-186.88884126,0.0003124,7]
[364729013,1749220296180,-1005.68853577,0.00031245,24]
[364729014,1749220296191,-150.0,0.00031251,7]
[364729015,1749220296201,-239.4279877,0.00031253,7]
[364729016,1749220296211,-186.88884126,0.00031253,7]
[364729017,1749220296221,-150.0,0.00031254,7]
[364729018,1749220296231,-150.0,0.00031257,7]
[364729019,1749220296240,-150.0,0.00031258,7]
[364729020,1749220296250,-150.0,0.00031264,7]
[364729021,1749220296259,-239.4279877,0.00031267,7]
[364729022,1749220296269,-186.88884126,0.00031267,7]
[364729023,1749220296279,-1000.67172156,0.00031268,5]
[364729024,1749220296288,-400.0,0.0003127,2]
[364729025,1749220296298,-400.0,0.0003127,2]
[364729026,1749220296307,-300.0,0.0003127,2]
[364729027,1749220296316,-500.0,0.0003127,2]
[364729028,1749220296326,-150.0,0.00031276,7]
[364729029,1749220296335,-150.0,0.00031279,7]
[364729030,1749220296346,-239.4279877,0.0003128,7]
[364729031,1749220296355,-186.88884126,0.0003128,7]
[364729032,1749220296365,-150.0,0.00031289,7]
[364729033,1749220296375,-150.0,0.00031292,7]
[364729034,1749220296388,-239.4279877,0.00031293,7]
[364729035,1749220296407,-186.88884126,0.00031293,7]
[364729036,1749220296427,-150.0,0.00031298,7]
[364729037,1749220296449,-150.0,0.00031299,7]
[364729038,1749220296468,-209.3,0.000313,5]
[364729039,1749220296486,-5562.0,0.000313,5]
[364729040,1749220296505,-239.4279877,0.00031307,7]
[364729041,1749220296525,-186.88884126,0.00031307,7]
[364729042,1749220296544,-2222.878919,0.00031315,7]
[364729043,1749220296563,-2069.069336,0.00031315,7]
[364729044,1749220296582,-480.0,0.00031315,7]
[364729045,1749220296598,-446.02258634,0.00031315,7]
[364729046,1749220296612,-617.81,0.00031315,7]
[364729047,1749220296630,-480.0,0.00031315,7]
[364729048,1749220296645,-454.52878552,0.00031315,7]
[364729049,1749220296661,-480.0,0.00031315,7]
[364729050,1749220296676,-480.0,0.00031315,7]
[364729051,1749220296693,-1997.23,0.00031315,7]
[364729052,1749220296708,-480.0,0.00031315,7]
[364729053,1749220296724,-847.34,0.00031315,7]
[364729054,1749220296739,-480.0,0.00031315,7]
[364729055,1749220296753,-480.0,0.00031315,7]
[364729056,1749220296770,-480.0,0.00031315,7]
[364729057,1749220296785,-480.0,0.00031315,7]
[364729058,1749220296800,-480.0,0.00031315,7]
[364729059,1749220296817,-557.72,0.00031315,7]
[364729060,1749220296831,-480.0,0.00031315,7]
[364729061,1749220296846,-480.0,0.00031315,7]
[364729062,1749220296861,-681.93,0.00031315,7]
[364729063,1749220296877,-480.0,0.00031315,7]
[364729064,1749220296893,-480.0,0.00031315,7]
[364729065,1749220296908,-683.06,0.00031315,7]
[364729066,1749220296923,-480.0,0.00031315,7]
[364729067,1749220296938,-1194.15,0.00031315,7]
[364729068,1749220296955,-480.0,0.00031315,7]
[364729069,1749220296969,-480.0,0.00031315,7]
[364729070,1749220296984,-480.0,0.00031315,7]
[364729071,1749220296999,-504.02,0.00031315,7]
[364729072,1749220297014,-699.24,0.00031315,7]
[364729073,1749220297030,-480.0,0.00031315,7]
[364729074,1749220297045,-480.0,0.00031315,7]
[364729075,1749220297059,-480.0,0.00031315,7]
[364729076,1749220297074,-480.0,0.00031315,7]
[364729077,1749220297089,-480.0,0.00031315,7]
[364729078,1749220297104,-480.0,0.00031315,7]
[364729079,1749220297120,-819.51,0.00031315,7]
[364729080,1749220297137,-480.0,0.00031315,7]
[364729081,1749220297151,-480.0,0.00031315,7]
[364729082,1749220297166,-979.25,0.00031315,7]
[364729083,1749220297181,-613.49,0.00031315,7]
[364729084,1749220297198,-480.0,0.00031315,7]
[364729085,1749220297213,-480.0,0.00031315,7]
[364729086,1749220297228,-480.0,0.00031315,7]
[364729087,1749220297244,-1135.81,0.00031315,7]
[364729088,1749220297259,-480.0,0.00031315,7]
[364729089,1749220297275,-480.0,0.00031315,7]
[364729090,1749220297291,-504.16,0.00031315,7]
[364729091,1749220297305,-480.0,0.00031315,7]
[364729092,1749220297320,-624.93756288,0.00031315,7]
[364729093,1749220297335,-480.0,0.00031315,7]
[364729094,1749220297350,-741.75,0.00031315,7]
[364729095,1749220297365,-371.92001283,0.00031315,7]
[364729096,1749220297380,-480.0,0.00031315,7]
[364729097,1749220297399,-830.77,0.00031315,7]
[364729098,1749220297414,-480.0,0.00031315,7]
[364729099,1749220297429,-480.0,0.00031315,7]
[364729100,1749220297444,-843.49,0.00031315,7]
[364729101,1749220297460,-480.0,0.00031315,7]
[364729102,1749220297475,-480.0,0.00031315,7]
[364729103,1749220297490,-467.95198328,0.00031315,7]
[364729104,1749220297506,-480.0,0.00031315,7]
[364729105,1749220297522,-2600.34,0.00031315,7]
[364729106,1749220297537,-620.62,0.00031315,7]
[364729107,1749220297552,-1342.16,0.00031315,7]
[364729108,1749220297567,-847.94,0.00031315,7]
[364729109,1749220297586,-675.47,0.00031315,30]
[364729110,1749220297602,-507.4,0.00031315,7]
[364729111,1749220297617,-480.0,0.00031315,7]
[364729112,1749220297632,-621.25,0.00031315,7]
[364729113,1749220297648,-694.31,0.00031315,7]
[364729114,1749220297663,-480.0,0.00031315,7]
[364729115,1749220297679,-480.0,0.00031315,7]
[364729116,1749220297695,-480.0,0.00031315,7]
[364729117,1749220297711,-480.0,0.00031315,7]
[364729118,1749220297726,-480.0,0.00031315,7]
[364729119,1749220297742,-480.0,0.00031315,7]
[364729120,1749220297758,-529.44,0.00031315,7]
[364729121,1749220297772,-737.4,0.00031315,7]
[364729122,1749220297788,-299.41537911,0.00031315,7]
[364729123,1749220297803,-480.0,0.00031315,7]
[364729124,1749220297819,-721.19,0.00031315,7]
[364729125,1749220297834,-1441.03,0.00031315,7]
[364729126,1749220297849,-1003.2,0.00031315,7]
[364729127,1749220297865,-480.0,0.00031315,7]
[364729128,1749220297880,-480.0,0.00031315,7]
[364729129,1749220297894,-1057.7,0.00031315,7]
[364729130,1749220297909,-480.0,0.00031315,7]
[364729131,1749220297924,-729.61,0.00031315,7]
[364729132,1749220297938,-480.0,0.00031315,7]
[364729133,1749220297956,-730.84,0.00031315,7]
[364729134,1749220297971,-689.59,0.00031315,7]
[364729135,1749220297986,-480.0,0.00031315,7]
[364729136,1749220298001,-1560.79,0.00031315,7]
[364729137,1749220298016,-480.0,0.00031315,7]
[364729138,1749220298032,-1787.56,0.00031315,7]
[364729139,1749220298047,-1063.57,0.00031315,7]
[364729140,1749220298063,-775.63,0.00031315,7]
[364729141,1749220298076,-1536.34,0.00031315,7]
[364729142,1749220298086,-480.0,0.00031315,7]
[364729143,1749220298096,-480.0,0.00031315,7]
[364729144,1749220298105,-480.0,0.00031315,7]
[364729145,1749220298115,-1206.52,0.00031315,7]
[364729146,1749220298396,-151.78443366,0.00031315,7]
[364729147,1749220298407,-608.45,0.00031315,7]
[364729148,1749220298417,-480.0,0.00031315,7]
[364729149,1749220298427,-920.1,0.00031315,7]
[364729150,1749220298437,-480.0,0.00031315,7]
[364729151,1749220298447,-480.0,0.00031315,7]
[364729152,1749220298457,-159.09379164,0.00031315,7]
[364729153,1749220298468,-480.0,0.00031315,7]
[364729154,1749220298478,-1792.16,0.00031315,7]
[364729155,1749220298487,-862.41,0.00031315,7]
[364729156,1749220298496,-490.39,0.00031315,7]
[364729157,1749220298507,-480.0,0.00031315,7]
[364729158,1749220298518,-480.0,0.00031315,7]
[364729159,1749220298528,-1262.12,0.00031315,7]
[364729160,1749220298537,-480.0,0.00031315,7]
[364729161,1749220298547,-1912.2,0.00031315,7]
[364729162,1749220298557,-513.36867827,0.00031315,7]
[364729163,1749220298567,-201.8274199,0.00031315,7]
[364729164,1749220298576,-480.0,0.00031315,7]
[364729165,1749220298587,-789.07,0.00031315,7]
[364729166,1749220298597,-480.0,0.00031315,7]
[364729167,1749220298608,-486.86,0.00031315,7]
[364729168,1749220298617,-480.0,0.00031315,7]
[364729169,1749220298627,-1009.26,0.00031315,7]
[364729170,1749220298636,-480.0,0.00031315,7]
[364729171,1749220298646,-1163.93,0.00031315,7]
[364729172,1749220298657,-1438.84,0.00031315,7]
[364729173,1749220298666,-480.0,0.00031315,7]